Cogmind - Beta 10.2 *** ADVENTURER MODE // 2020.12.08 @ 23:44:52 Player: NinjaBub504 Result: Destroyed by G-34 Mercenary with Small Laser Performance ------------- Evolutions (0) 0 Regions Visited (1) 200 Robots Destroyed (12) 60 Value Destroyed (326) 326 Prototype IDs (0) 0 Alien Tech Used (0) 0 Bonus (0) 0 TOTAL SCORE: 586 Bonus ------- None Cogmind --------- Core Integrity 0/250 Matter 215/300 Energy 250/250 System Corruption 0% Temperature Cool (66) Movement Core (200) Ox3 Location -10/Materials Parts ------- > --- POWER (1) -------- Ion Engine > --- PROPULSION (2) --- (None) > --- UTILITY (2) ------ Visual Processing Unit High-powered Tractor Beam > --- WEAPON (2) ------- Medium Laser Assault Rifle > --- INVENTORY (4) ---- (None) Peak State ------------ > --- POWER ------------ Ion Engine > --- PROPULSION ------- Light Treads Light Treads > --- UTILITY ---------- Small Storage Unit Small Matter Pod > --- WEAPON ----------- Small Laser Assault Rifle > --- INVENTORY -------- Mining Laser [Rating: 7] Favorites ----------- Power Ion Engine Engine Ion Engine Propulsion Light Treads Treads Light Treads Wheel Wheel Hover Unit Hover Unit Utility Small Storage Unit Device High-powered Tractor Beam Storage Small Storage Unit Processor Visual Processing Unit Weapon Assault Rifle Energy Gun Small Laser Ballistic Gun Assault Rifle Launcher Grenade Launcher Special Weapon Mining Laser Build | -11 -10 ------- Run | Scr Mat Slots Evolved . | . . Power . | . . Propulsion . | . . Utility . | . . Weapon . | . . Parts Attached 24 | 9 15 Power 2 | 1 1 Engine 2 | 1 1 Core . | . . Reactor . | . . Propulsion 5 | 2 3 Treads 2 | 2 . Leg . | . . Wheel 2 | . 2 Hover 1 | . 1 Flight . | . . Utility 8 | 2 6 Device 2 | . 2 Storage 5 | 2 3 Processor 1 | . 1 Hackware . | . . Protection . | . . Artifact . | . . Weapon 9 | 4 5 Energy Gun 3 | 2 1 Energy Cannon . | . . Ballistic Gun 2 | 1 1 Ballistic Cannon . | . . Launcher 1 | . 1 Special Weapon 3 | 1 2 Impact Weapon . | . . Slashing Weapon . | . . Piercing Weapon . | . . Special Melee Weapon . | . . Unidentified Prototypes . | . . Parts Lost 9 | 3 6 Power 1 | . 1 Propulsion 3 | 1 2 Utility 1 | 1 . Weapon 4 | 1 3 Highest Loss Streak 5 | 2 5 Average Slot Usage (%) 51 | . 51 Engine 8 | . 8 Treads 2 | . 2 Wheel 6 | . 6 Device 2 | . 2 Storage 16 | . 16 Processor 1 | . 1 Ballistic Gun 4 | . 4 Special Weapon 7 | . 7 Naked Turns 19 | . 19 Heaviest Build 43 | 13 43 Greatest Support 40 | 40 20 Greatest Overweight (x) 11 | 1 11 Average Overweight (x) . | . 1 Largest Inventory Capacity 12 | 6 12 Average Capacity 6 | 5 8 Most Carried 2 | 2 2 Average Carried . | . . Final Capacity 6 | 6 4 Final Carried 1 | 1 . Class Distribution -------------------- 100% | Mutant Dominant Class ---------------- Mutant | -10/Materials Resources | -11 -10 ----------- Run | Scr Mat Matter Collected 415 | 205 210 Remotely 44 | . 44 Salvage Created 219 | 49 170 Parts 26 | 7 19 Haulers Intercepted . | . . Recyclers Shooed 1 | . 1 Parts Field Recycled . | . . Retrieved Matter . | . . Parts Self-Destructed . | . . Prevented . | . . Kills | -11 -10 ------- Run | Scr Mat Combat Hostiles Destroyed 7 | 1 6 Melee 2 | . 2 Guns 2 | 1 1 Cannons 1 | . 1 AOE 2 | . 2 Classes Destroyed 6 | 3 3 Worker 1 | 1 . Builder 1 | . 1 Tunneler 2 | 1 1 Watcher 1 | . 1 Grunt 6 | . 6 Demolisher 1 | 1 . Best Kill Streak 6 | 1 6 Combat Bots Only 3 | 1 3 Max Kills in Single Turn 1 | 1 1 Gunslinging . | . . Exploded 1 | . 1 Melee 1 | . 1 Uniques/NPCs Destroyed . | . . Combat | -11 -10 -------- Run | Scr Mat Damage Taken 1009 | 546 463 Core 255 | 100 155 Absorbed by Shields . | . . Core Remaining (%) 60 | 60 . Volleys Fired 39 | 9 30 Largest 2 | 2 2 Hottest 120 | 60 120 Shots Fired 49 | 13 36 Gun 32 | 13 19 Cannon . | . . Launcher 6 | . 6 Special 11 | . 11 Kinetic 25 | 9 16 Thermal 18 | 4 14 Explosive 6 | . 6 Electromagnetic . | . . Robot Hit Streak 12 | 9 12 Robot Miss Streak 2 | 1 2 Penetration Max . | . . Secondary Targets 1 | . 1 Max Gunslinging Chain 1 | . 1 Shots Hit Robots 40 | 11 29 Core Hits 29 | 5 24 Critical Hits . | . . Critical Kills . | . . Critical Parts Destroyed . | . . Melee Attacks . | . . Impact . | . . Slashing . | . . Piercing . | . . Sneak Attacks . | . . Combat Hostiles . | . . Follow-up Attacks . | . . Damage Inflicted 832 | 106 726 Guns 302 | 102 200 Cannons . | . . Explosions 435 | . 435 Melee . | . . Ramming 47 | 4 43 Kinetic 229 | 67 162 Thermal 121 | 35 86 Explosive 435 | . 435 Electromagnetic . | . . Impact . | . . Slashing . | . . Piercing . | . . Highest Corruption . | . . Average Corruption . | . . Corruption Purged . | . . Overload Shots . | . . Overflow Damage 23 | . 23 Projectiles . | . . Explosions 23 | . 23 Melee . | . . Knockbacks 1 | . 1 Impact 1 | . 1 Kinetic . | . . Secondary . | . . Self-Inflicted Damage 62 | . 62 Shots 2 | . 2 Rammed 10 | 1 9 Targets Rammed 10 | 1 9 Kicked . | . . Crushed . | . . Highest Temperature 60 | 10 60 Average Temperature 17 | 10 18 Received Heat Transfer 314 | 20 294 Siege Activations . | . . Robots Corrupted . | . . Combat Hostiles . | . . Parts Fried . | . . Impact Corruptions . | . . Robots Melted . | . . Combat Hostiles . | . . Parts Melted . | . . Heat Transferred 411 | 75 336 Parts Sabotaged . | . . Parts Stolen . | . . Parts Stripped . | . . Power Chain Reactions . | . . Missiles Intercepted . | . . Alert | -11 -10 ------- Run | Scr Mat Peak Influence 196 | 30 196 Initial 11 | . 11 Average 19 | 1 101 Maximum Alert Level . | . . Low Security (%) 100 | 100 100 Level 1 . | . . Level 2 . | . . Level 3 . | . . Level 4 . | . . Level 5 . | . . High Security . | . . Max Security . | . . Squads Dispatched 2 | . 2 Investigation 2 | . 2 Extermination . | . . Reinforcement . | . . Assault . | . . Garrison . | . . Intercept . | . . Construction Impeded . | . . Haulers Reinforced . | . . Stealth | -11 -10 --------- Run | Scr Mat Distress Signals 1 | . 1 Communications Jammed . | . . Distress Signals . | . . Times Spotted 17 | 6 11 Peak Tracking Total 5 | 4 5 Tactical Retreats 3 | . 3 Traps | -11 -10 ------- Run | Scr Mat Traps Triggered . | . . Indirectly . | . . Trap Hack Attempts . | . . Triggered . | . . Disarmed . | . . Reprogrammed . | . . Reused . | . . Traps Extracted . | . . Installed . | . . Triggered . | . . Machines | -11 -10 ---------- Run | Scr Mat Machines Disabled 2 | . 2 Max in Single Turn 1 | . 1 Machines Sabotaged . | . . Garrisons Compromised . | . . Overloaded Fab Kills . | . . Fab Network Shutdowns . | . . Hacking | -11 -10 --------- Run | Scr Mat Machines Accessed 2 | . 2 Terminals 1 | . 1 Fabricators . | . . Repair Stations . | . . Recycling Units 1 | . 1 Scanalyzers . | . . Garrison Access . | . . Total Hacks 7 | . 7 Successful 5 | . 5 Failed 2 | . 2 Catastrophic . | . . Database Lockouts . | . . Manual 2 | . 2 Terminals 4 | . 4 Fabricators . | . . Repair Stations . | . . Recycling Units 3 | . 3 Scanalyzers . | . . Garrison Access . | . . Terminal Hacks 3 | . 3 Record 3 | . 3 Fabricator Hacks . | . . Repair Station Hacks . | . . Recycling Unit Hacks 1 | . 1 Retrieve Components 1 | . 1 Scanalyzer . | . . Garrison Access Hacks . | . . Unauthorized Hacks 1 | . 1 Terminals . | . . Fabricators . | . . Repair Stations . | . . Recycling Units 1 | . 1 Monitor 1 | . 1 Scanalyzers . | . . Garrison Access . | . . Data Cores Recovered . | . . Used . | . . Hacking Detections 2 | . 2 Full Trace Events 2 | . 2 Feedback Events . | . . Feedback Blocked . | . . Robot Schematics Acquired . | . . Robots Built . | . . Matter . | . . Time . | . . Total Robot Build Rating . | . . Part Schematics Acquired . | . . Parts Built . | . . Matter . | . . Time . | . . Total Part Build Rating . | . . Parts Repaired . | . . Time . | . . Parts Recycled . | . . Recycled Matter . | . . Retrieved Matter . | . . Retrieved Components 2 | . 2 Parts Scanalyzed . | . . Part Schematics Acquired . | . . Parts Damaged . | . . Bothacking | -11 -10 ------------ Run | Scr Mat Used RIF Installer . | . . Robots Hacked . | . . Non-combat . | . . Combat . | . . Robot Hacks Applied . | . . Relay Couplers Released . | . . Robots Rewired . | . . Allies Hacked . | . . Hacks Repelled . | . . Allies | -11 -10 -------- Run | Scr Mat Total Allies . | . . Largest Group . | . . Highest-Rated Group . | . . Highest-Rated Ally . | . . Total Orders . | . . Ally Attacks . | . . Total Damage . | . . Kills . | . . Allies Corrupted . | . . Allies Melted . | . . Intel | -11 -10 ------- Run | Scr Mat Robot Analysis Total . | . . Derelict Logs Recovered . | . . Drone Launches . | . . Drone Recoveries . | . . Exploration | -11 -10 ------------- Run | Scr Mat Turns Passed 1913 | 1565 348 Spaces Moved 461 | 282 179 Core 132 | 11 121 Treads 294 | 271 23 Legs . | . . Wheels 35 | . 35 Hover . | . . Flight . | . . Fastest Speed 50 | 50 50 Average Speed 146 | 156 129 Slowest Speed 600 | 160 600 Overloaded Moves . | . . Propulsion Burnouts . | . . Robots Hopped . | . . Cave-ins Triggered . | . . Exploration Rate (%) 39 | 36 43 Regions Visited 1 Branch Regions . Pre-discovered Areas . | . . Known Exits Taken . | . . Unknown Exits Taken 1 | 1 . Scrap Searched . | . . Spaces Dug . | . . Terrain Destroyed 14 | . 14 Melee . | . . Projectile . | . . AOE 14 | . 14 Terrain Rammed . | . . Walls Destroyed . | . . Machines Disabled . | . . Actions | -11 -10 --------- Run | Scr Mat Total 1646 | 1391 255 Wait 1083 | 1083 . Move 460 | 281 179 Hop . | . . Pick Up 22 | 8 14 Fast Attach . | . . Attach 20 | 7 13 Detach . | . . Swap 4 | 2 2 Drop 8 | . 8 Fire 39 | 9 30 Melee . | . . Ram 9 | . 9 Kick . | . . Crush 1 | 1 . Escape Stasis . | . . Rewire . | . . Trap . | . . Miscellaneous . | . . Route ------- -11/Scrapyard -10/Materials (discovered 2 exits: [*Mat x2]) History --------- Turn | Location | Event 2 | -11/Scrapyard | Met Revision 17 6 | -11/Scrapyard | Discovered new exit (range 15) 1514 | -11/Scrapyard | Assembled infested the area 1566 | -11/Scrapyard | Entered Materials 1644 | -10/Materials | Build established: Mutant 1680 | -10/Materials | Core integrity fell below 50% 1692 | -10/Materials | Discovered new exit (range 16) 1712 | -10/Materials | Lost 5 parts (1p1n3w) 1720 | -10/Materials | Core integrity fell below 20% 1801 | -10/Materials | Discovered new exit (range 16) 1914 | -10/Materials | Destroyed by G-34 Mercenary with Small Laser Last Messages --------------- Acquired Sensor Array. Connecting with Recycling Unit... >>Trojan(Monitor) Trojan loaded successfully. Testing... Monitoring response positive. >>Retrieve(Components) Retrieving 2 components... Hpw. Tractor Beam Visual Processing Unit ALERT: Suspicious activity at Recycling Unit M001. Dispatching Investigation squad. Acquired Hpw. Tractor Beam. Acquired Visual Processing Unit. Dropped Sensor Array. Acquired Med. Laser. Acquired Assault Rifle. G-34 Mercenary destroyed. Switching to secondary target: G-34 Mercenary. Acquired 44 matter. Map ----- +----------------------------------------------------+ | ???????????????????? """"" """ T" ##### | | ?????????????????????# """"" "" " ## | | ?????????????????????# """"" "" "" ## "" | | ?????????????????????# """ """ ## "T | | ?????????????????????# | ## "" | | ?????????????????????# != + | | ?????????????????????# % ## | | ###################### ################## ## " | | # #????????????????# ## " | | # < #????????????????# ## " | | # #????????????????# ## " | | ####+############ #### #????????????????# ## | | #????##???# #??# #????????????????# ##### | | #??? ??# #??# #????????????????# #???? | | "" #???? ?# #??# #????????????????? ????? | | """ #???? """?# #??# #????????????????? ????? | | """ #???? """ # #??# ????????????????? ????? | | """ #??????"" # #??# ???????????????? ????? | | "" #???????? + #??# ???????????????? ????? | | #?????????# ##########??????????????? ????? | | ##+####?????????# g #?????????????????#????? | | ## ##???????????# # g #??????????????????????? | | ############# # = #??????????????????????? | | #*!! #??????????????????????? | | #*!! #??????????????????????? | | ##+#########+###*! @#??????????????????????? | | # ## ## ########??????????????????????? | | # ## """ ## """ #?????????????????????????????? | | # ## """ ## "Y" #?????????????????????????????? | | # ## """ ## " " #?????????????????????????????? | | # ## """ ## ! #?????????????????????????????? | | ##### ## #?????????????????????????????? | | ????################?????????????????????????????? | | ?????????????????????????????????????????????????? | | ?????????????????????????????????????????????????? | | ?????????????????????????????????????????????????? | | ?????????????????????????????????????????????????? | | ?????????????????????????????????????????????????? | | ?????????????????????????????????????????????????? | | ?????????????????????????????????????????????????? | | ?????????????????????????????????????????????????? | | ?????????????????????????????????????????????????? | | | | | | | | | | | | | | | | | +----------------------------------------------------+ Best States ------------- Heat Dissipation 25 Energy Generation 10 Energy Capacity 550 Matter Stores 230 Matter Capacity 350 Sight Range 18 Robot Scan Range 10 Terrain Scan Density 10 Resistance: KI 20 Resistance: TH 20 Resistance: EX 20 Resistance: EM 20 Resistance: I 20 Resistance: S 20 Resistance: P 20 Evasion (%) 50 Recoil Reduction 2 Offensive Hacking 10 Item Schematics ----------------- None Robot Schematics ------------------ None Fabricated ------------ Nothing Alien Tech Used ----------------- None Achievements -------------- Curiosity Killed The Cat Challenges ------------ None Game ------ Seed TacticalAdvancedRay Manual? 0 Play Time 00:13:55 Cumulative 6.4 hours Start 2020.12.08 @ 23:35:35 End 2020.12.08 @ 23:44:52 Sessions 1 Manual Loads 0 Difficulty Adventurer Special Mode None Game No. 11 Rogue 6 Adventurer 5 Explorer 0 Win Type - Total 0 Types 0/0/0/0/0/0/0/0/0 Lore% 16 Gallery% 13 Achievement% 14 Wizard Run 0 Options --------- ASCII 0 Keyboard 0 Movement Mouse Keybinds 0 Fullscreen 2 Font 16/Terminus Map View 76x50 Tactical HUD 0 Map Filters NONE Filters NONE Steam 1 RUN: 9d10a575-03ba-4e89-8fd1-bfd22db7702d